fUSD/lending_fUSD_20241221
["ID","MTS","AMOUNT","RATE_DAILY","PERIOD"]
[346176088,1734765058224,-779.16,0.0002,2]
[346176089,1734765058233,-437.22693411,0.0002,2]
[346176090,1734765058243,-664.07,0.0002,2]
[346176091,1734765058252,-500.0,0.0002,2]
[346176092,1734765058262,-500.0,0.0002,2]
[346176093,1734765058271,-598.65,0.0002,2]
[346176094,1734765058280,-537.46,0.0002,2]
[346176095,1734765058293,-500.0,0.0002,2]
[346176096,1734765058304,-550.54,0.0002,2]
[346176097,1734765058314,-609.74,0.0002,2]
[346176098,1734765058323,-1545.76,0.0002,2]
[346176099,1734765058333,-500.0,0.0002,2]
[346176100,1734765058343,-500.0,0.0002,2]
[346176101,1734765058353,-858.31,0.0002,2]
[346176102,1734765058363,-525.83,0.0002,2]
[346176103,1734765058373,-691.15,0.0002,2]
[346176104,1734765058382,-588.56,0.0002,2]
[346176105,1734765058392,-535.87,0.0002,2]
[346176106,1734765058404,-1112.66,0.0002,2]
[346176107,1734765058415,-500.0,0.0002,2]
[346176108,1734765058427,-763.06,0.0002,2]
[346176109,1734765058438,-500.0,0.0002,2]
[346176110,1734765058448,-971.73,0.0002,2]
[346176111,1734765058459,-500.0,0.0002,2]
[346176112,1734765058470,-500.0,0.0002,2]
[346176113,1734765058480,-695.31,0.0002,2]
[346176114,1734765058490,-545.8,0.0002,2]
[346176115,1734765058500,-1066.88,0.0002,2]
[346176116,1734765058511,-8814.31,0.0002,2]
[346176117,1734765058523,-641.57,0.0002,2]
[346176118,1734765058533,-1201.21,0.0002,2]
[346176119,1734765058543,-1027.94,0.0002,2]
[346176120,1734765058553,-986.58,0.0002,2]
[346176121,1734765058562,-500.0,0.0002,2]
[346176122,1734765058573,-832.32,0.0002,2]
[346176123,1734765058587,-594.18,0.0002,2]
[346176124,1734765058597,-500.0,0.0002,2]
[346176125,1734765058607,-204.78180081,0.0002,2]
[346176126,1734765058618,-1670.61,0.0002,2]
[346176127,1734765058629,-679.53,0.0002,2]
[346176128,1734765058640,-922.69,0.0002,2]
[346176129,1734765058650,-850.92,0.0002,2]
[346176130,1734765058661,-500.0,0.0002,2]
[346176131,1734765058670,-2604.91,0.0002,2]
[346176132,1734765058680,-679.02,0.0002,2]
[346176133,1734765058690,-500.0,0.0002,2]
[346176134,1734765058700,-639.51,0.0002,2]
[346176135,1734765058709,-539.08,0.0002,2]
[346176136,1734765058719,-936.04,0.0002,2]
[346176137,1734765058728,-500.0,0.0002,2]
[346176138,1734765058738,-1000.0,0.0002,2]
[346176139,1734765058748,-667.52,0.0002,2]
[346176140,1734765058758,-500.0,0.0002,2]
[346176141,1734765058767,-500.0,0.0002,2]
[346176142,1734765058777,-500.0,0.0002,2]
[346176143,1734765058787,-693.7,0.0002,2]
[346176144,1734765058797,-572.81,0.0002,2]
[346176145,1734765058809,-1349.96,0.0002,2]
[346176146,1734765058819,-4988.53,0.0002,2]
[346176147,1734765058829,-500.0,0.0002,2]
[346176148,1734765058840,-903.09,0.0002,2]
[346176149,1734765058849,-880.44,0.0002,2]
[346176150,1734765058859,-500.0,0.0002,2]
[346176151,1734765058868,-500.0,0.0002007,2]
[346176152,1734765058879,-373.92977194,0.00020082,2]
[346176153,1734765058889,-824.7,0.00020084,2]
[346176154,1734765058899,-6126.26800292,0.00020131,2]
[346176155,1734765058909,-2000.0,0.00020222,2]
[346176156,1734765058919,-200.0,0.00020222,2]
[346176157,1734765058929,-2000.0,0.00020222,2]
[346176158,1734765058939,-200.0,0.00020222,2]
[346176159,1734765058949,-2000.0,0.00020222,2]
[346176160,1734765058959,-200.0,0.00020222,2]
[346176161,1734765058969,-150.0,0.00020244,4]
[346176162,1734765058979,-150.0,0.00020244,4]
[346176163,1734765058988,-150.0,0.00020244,4]
[346176164,1734765058998,-150.0,0.00020244,4]
[346176165,1734765059008,-500.0,0.0002027,2]
[346176166,1734765059017,-609.12,0.0002027,2]
[346176167,1734765059027,-731.44,0.0002027,2]
[346176168,1734765059037,-500.0,0.0002027,2]
[346176169,1734765059046,-500.0,0.0002027,2]
[346176170,1734765059056,-909.03,0.0002027,2]
[346176171,1734765059066,-1204.118159,0.0002027,2]
[346176172,1734765059075,-742.5,0.0002027,2]
[346176173,1734765059085,-810.145927,0.0002027,2]
[346176174,1734765059094,-534.19,0.0002027,2]
[346176175,1734765059104,-1459.91,0.0002027,2]
[346176176,1734765059114,-500.0,0.0002027,2]
[346176177,1734765059123,-156.76574,0.0002027,2]
[346176178,1734765059132,-987.03,0.0002027,2]
[346176179,1734765059142,-1080.78,0.0002027,2]
[346176180,1734765059151,-167.353892,0.0002027,2]
[346176181,1734765059160,-500.0,0.0002027,2]
[346176182,1734765059170,-907.79,0.0002027,2]
[346176183,1734765059179,-5648.75,0.0002027,2]
[346176184,1734765059189,-1707.55,0.0002027,2]
[346176185,1734765059199,-500.0,0.0002027,2]
[346176186,1734765059208,-555.06,0.0002027,2]
[346176187,1734765059218,-4690.0,0.0002027,2]
[346176188,1734765059227,-500.0,0.00020271,2]
[346176189,1734765059237,-500.0,0.00020271,2]
[346176190,1734765059247,-500.0,0.00020271,2]
[346176191,1734765059257,-500.0,0.00020271,2]
[346176192,1734765059266,-500.0,0.00020271,2]
[346176193,1734765059276,-500.0,0.00020271,2]
[346176194,1734765059286,-500.0,0.00020271,2]
[346176195,1734765059296,-500.0,0.00020271,2]
[346176196,1734765059305,-500.0,0.00020271,2]
[346176197,1734765059316,-500.0,0.00020271,2]
[346176198,1734765059326,-500.0,0.00020271,2]
[346176199,1734765059336,-500.0,0.00020271,2]
[346176200,1734765059346,-500.0,0.00020271,2]
[346176201,1734765059356,-500.0,0.00020271,2]
[346176202,1734765059366,-500.0,0.00020271,2]
[346176203,1734765059376,-500.0,0.00020271,2]
[346176204,1734765059387,-500.0,0.00020271,2]
[346176205,1734765059397,-500.0,0.00020271,2]
[346176206,1734765059407,-500.0,0.00020271,2]
[346176207,1734765059416,-500.0,0.00020271,2]
[346176208,1734765059426,-500.0,0.00020271,2]
[346176209,1734765059437,-500.0,0.00020271,2]
[346176210,1734765059447,-454.81645851,0.00020271,2]
[346176211,1734765059458,-381.21271565,0.00020271,2]
[346176212,1734765059468,-500.0,0.00020271,2]
[346176213,1734765059480,-500.0,0.00020271,2]
[346176214,1734765059492,-500.0,0.00020271,2]
[346176215,1734765059501,-500.0,0.00020271,2]
[346176216,1734765059512,-500.0,0.00020271,2]
[346176217,1734765059523,-500.0,0.00020271,2]
[346176218,1734765059533,-500.0,0.00020271,2]
[346176219,1734765059542,-500.0,0.00020271,2]
[346176220,1734765059552,-608.50061079,0.00020271,2]
[346176221,1734765059563,-500.0,0.00020271,2]
[346176222,1734765059573,-500.0,0.00020271,2]
[346176223,1734765059586,-500.0,0.00020271,2]
[346176224,1734765059599,-800.63,0.00020271,2]
[346176225,1734765059610,-500.0,0.00020271,2]
[346176226,1734765059622,-500.0,0.00020271,2]
[346176227,1734765059633,-500.0,0.00020271,2]
[346176228,1734765059646,-500.0,0.00020271,2]
[346176229,1734765059657,-508.87196786,0.00020271,2]
[346176230,1734765059668,-557.93,0.00020271,2]
[346176231,1734765059678,-500.0,0.00020271,2]
[346176232,1734765059688,-564.53,0.00020271,2]
[346176233,1734765059698,-1097.94,0.00020271,2]
[346176234,1734765059709,-1312.98,0.00020271,2]
[346176235,1734765059720,-500.0,0.00020271,2]
[346176236,1734765059730,-500.0,0.00020271,2]
[346176237,1734765059740,-713.67,0.00020271,2]
[346176238,1734765059750,-545.6,0.00020271,2]
[346176239,1734765059760,-617.61,0.00020271,2]
[346176240,1734765059771,-500.0,0.00020271,2]
[346176241,1734765059781,-500.0,0.00020271,2]
[346176242,1734765059791,-1027.31,0.00020271,2]
[346176243,1734765059800,-500.0,0.00020271,2]
[346176244,1734765059810,-781.83,0.00020271,2]
[346176245,1734765059819,-500.0,0.00020271,2]
[346176246,1734765059828,-500.0,0.00020271,2]
[346176247,1734765059838,-839.23,0.00020271,2]
[346176248,1734765059848,-500.0,0.00020271,2]
[346176249,1734765059858,-500.0,0.00020271,2]
[346176250,1734765059868,-500.0,0.00020271,2]
[346176251,1734765059878,-500.0,0.00020271,2]
[346176252,1734765059889,-529.71,0.00020271,2]
[346176253,1734765059899,-500.0,0.00020271,2]
[346176254,1734765059909,-1178.66,0.00020271,2]
[346176255,1734765059918,-500.0,0.00020271,2]
[346176256,1734765059928,-551.56962467,0.00020271,2]
[346176257,1734765059937,-2429.01,0.00020271,2]
[346176258,1734765059947,-500.0,0.00020271,2]
[346176259,1734765059957,-946.11,0.00020271,2]
[346176260,1734765059966,-500.0,0.00020271,2]
[346176261,1734765059976,-500.0,0.00020271,2]
[346176262,1734765059985,-500.0,0.00020271,2]
[346176263,1734765059995,-2009.81,0.00020271,2]
[346176264,1734765060005,-353.06353067,0.00020271,2]
[346176265,1734765060015,-500.0,0.00020271,2]
[346176266,1734765060025,-500.0,0.00020271,2]
[346176267,1734765060034,-392.33655805,0.00020271,2]
[346176268,1734765060044,-500.0,0.00020271,2]
[346176269,1734765060055,-500.0,0.00020271,2]
[346176270,1734765060065,-832.29,0.00020271,2]
[346176271,1734765060075,-500.0,0.00020271,2]
[346176272,1734765060085,-500.0,0.00020271,2]
[346176273,1734765060095,-553.19,0.00020272,2]
[346176274,1734765060105,-540.6,0.00020272,2]
[346176275,1734765060115,-500.0,0.00020272,2]
[346176276,1734765060125,-589.08,0.00020272,2]
[346176277,1734765060135,-500.0,0.00020272,2]
[346176278,1734765060145,-691.96,0.00020272,2]
[346176279,1734765060156,-572.24,0.00020272,2]
[346176280,1734765060166,-711.14,0.00020272,2]
[346176281,1734765060176,-842.2,0.00020272,2]
[346176282,1734765060186,-500.0,0.00020272,2]
[346176283,1734765060196,-928.46,0.00020272,2]
[346176284,1734765060207,-500.0,0.00020272,2]
[346176285,1734765060216,-267.26,0.00020272,2]
[346176286,1734765060227,-647.31,0.00020272,2]
[346176287,1734765060238,-500.0,0.00020272,2]
[346176288,1734765060249,-921.84,0.00020272,2]
[346176289,1734765060260,-931.6,0.00020272,2]
[346176290,1734765060271,-679.34,0.00020272,2]
[346176291,1734765060281,-621.87,0.00020272,2]
[346176292,1734765060526,-707.66,0.00020272,2]
[346176293,1734765060544,-500.0,0.00020272,2]
[346176294,1734765060554,-1055.71,0.00020272,2]
[346176295,1734765060563,-812.57,0.00020272,2]
[346176296,1734765060576,-1167.67,0.00020272,2]
[346176297,1734765060587,-500.0,0.00020272,2]
[346176298,1734765060596,-505.48,0.00020272,2]
[346176299,1734765060605,-500.0,0.00020272,2]
[346176300,1734765060615,-500.0,0.00020272,2]
[346176301,1734765060625,-500.0,0.00020272,2]
[346176302,1734765060634,-500.0,0.00020272,2]
[346176303,1734765060643,-803.44,0.00020272,2]
[346176304,1734765060653,-588.79,0.00020272,2]
[346176305,1734765060662,-500.0,0.00020272,2]
[346176306,1734765060674,-500.0,0.00020272,2]
[346176307,1734765060683,-500.0,0.00020272,2]
[346176308,1734765060692,-500.0,0.00020272,2]
[346176309,1734765060702,-520.04,0.00020273,2]
[346176310,1734765060711,-500.0,0.00020273,2]
[346176311,1734765060722,-500.0,0.00020273,2]
[346176312,1734765060731,-506.73319069,0.00020273,2]
[346176313,1734765060741,-183.66071236,0.00020273,2]
[346176314,1734765060751,-500.0,0.00020273,2]
[346176315,1734765060760,-500.0,0.00020273,2]
[346176316,1734765060769,-500.0,0.00020273,2]
[346176317,1734765060778,-500.0,0.00020273,2]
[346176318,1734765060791,-500.0,0.00020273,2]
[346176319,1734765060800,-500.0,0.00020273,2]
[346176320,1734765060810,-500.0,0.00020273,2]
[346176321,1734765060819,-592.80509711,0.00020273,2]
[346176322,1734765060828,-500.0,0.00020273,2]
[346176323,1734765060838,-500.0,0.00020273,2]
[346176324,1734765060847,-500.0,0.00020273,2]
[346176325,1734765060857,-500.0,0.00020273,2]
[346176326,1734765060866,-500.0,0.00020273,2]
[346176327,1734765060876,-500.0,0.00020273,2]
[346176328,1734765060885,-500.0,0.00020273,2]
[346176329,1734765060895,-617.49,0.00020273,2]
[346176330,1734765060904,-500.0,0.00020273,2]
[346176331,1734765060914,-500.0,0.00020273,2]
[346176332,1734765060924,-500.0,0.00020273,2]
[346176333,1734765060933,-500.0,0.00020273,2]
[346176334,1734765060943,-500.0,0.00020273,2]
[346176335,1734765060953,-500.0,0.00020273,2]
[346176336,1734765060963,-500.0,0.00020273,2]
[346176337,1734765060972,-500.0,0.00020273,2]
[346176338,1734765060982,-614.48,0.00020273,2]
[346176339,1734765060992,-500.0,0.00020273,2]
[346176340,1734765061002,-500.0,0.00020273,2]
[346176341,1734765061012,-500.0,0.00020273,2]
[346176342,1734765061022,-500.0,0.00020273,2]
[346176343,1734765061031,-500.0,0.00020273,2]
[346176344,1734765061043,-500.0,0.00020273,2]
[346176345,1734765061053,-500.0,0.00020273,2]
[346176346,1734765061063,-500.0,0.00020273,2]
[346176347,1734765061072,-500.0,0.00020273,2]
[346176348,1734765061083,-500.0,0.00020273,2]
[346176349,1734765061093,-500.0,0.00020273,2]
[346176350,1734765061103,-500.0,0.00020273,2]
[346176351,1734765061112,-569.52,0.00020273,2]
[346176352,1734765061122,-500.0,0.00020273,2]
[346176353,1734765061132,-500.0,0.00020273,2]
[346176354,1734765061142,-500.0,0.00020273,2]
[346176355,1734765061152,-500.0,0.00020273,2]
[346176356,1734765061163,-500.0,0.00020273,2]
[346176357,1734765061173,-500.0,0.00020273,2]
[346176358,1734765061183,-521.59,0.00020273,2]
[346176359,1734765061192,-618.79,0.00020273,2]
[346176360,1734765061202,-500.0,0.00020273,2]
[346176361,1734765061212,-500.0,0.00020273,2]
[346176362,1734765061222,-500.0,0.00020273,2]
[346176363,1734765061232,-526.53,0.00020273,2]
[346176364,1734765061241,-500.0,0.00020273,2]
[346176365,1734765061251,-500.0,0.00020273,2]
[346176366,1734765061260,-500.0,0.00020273,2]
[346176367,1734765061270,-500.0,0.00020273,2]
[346176368,1734765061279,-262.96,0.00020273,2]
[346176369,1734765061291,-500.0,0.00020273,2]
[346176370,1734765061300,-609.6,0.00020273,2]
[346176371,1734765061312,-500.0,0.00020273,2]
[346176372,1734765061321,-500.0,0.00020273,2]
[346176373,1734765061332,-500.0,0.00020273,2]
[346176374,1734765061342,-164.12901099,0.00020273,2]
[346176375,1734765061352,-500.0,0.00020273,2]
[346176376,1734765061361,-528.4,0.00020273,2]
[346176377,1734765061371,-523.51,0.00020273,2]
[346176378,1734765061380,-500.0,0.00020273,2]
[346176379,1734765061391,-500.0,0.00020273,2]
[346176380,1734765061401,-500.0,0.00020273,2]
[346176381,1734765061410,-500.0,0.00020273,2]
[346176382,1734765061420,-500.0,0.00020273,2]
[346176383,1734765061429,-654.57,0.00020273,2]
[346176384,1734765061439,-500.0,0.00020273,2]
[346176385,1734765061449,-500.0,0.00020273,2]
[346176386,1734765061458,-659.53,0.00020273,2]
[346176387,1734765061468,-530.0,0.00020273,2]
[346176388,1734765061478,-567.63,0.00020273,2]
[346176389,1734765061487,-500.0,0.00020273,2]
[346176390,1734765061496,-500.0,0.00020273,2]
[346176391,1734765061507,-518.88062395,0.00020273,2]
[346176392,1734765061517,-591.24,0.00020273,2]
[346176393,1734765061527,-500.0,0.00020273,2]
[346176394,1734765061539,-652.96,0.00020273,2]
[346176395,1734765061549,-500.0,0.00020273,2]
[346176396,1734765061558,-500.0,0.00020273,2]
[346176397,1734765061567,-500.0,0.00020273,2]
[346176398,1734765061581,-586.29,0.00020273,2]
[346176399,1734765061591,-500.0,0.00020273,2]
[346176400,1734765061602,-500.0,0.00020273,2]
[346176401,1734765061612,-157.77130028,0.00020273,2]
[346176402,1734765061623,-500.0,0.00020273,2]
[346176403,1734765061632,-500.0,0.00020273,2]
[346176404,1734765061641,-500.0,0.00020273,2]
[346176405,1734765061653,-500.0,0.00020273,2]
[346176406,1734765061663,-500.0,0.00020273,2]
[346176407,1734765061672,-500.0,0.00020273,2]
[346176408,1734765061682,-500.0,0.00020273,2]
[346176409,1734765061691,-500.0,0.00020273,2]
[346176410,1734765061700,-500.0,0.00020273,2]
[346176411,1734765061710,-500.0,0.00020273,2]
[346176412,1734765061719,-500.0,0.00020273,2]
[346176413,1734765061729,-500.0,0.00020273,2]
[346176414,1734765061739,-500.0,0.00020273,2]
[346176415,1734765061748,-500.0,0.00020273,2]
[346176416,1734765061758,-500.0,0.00020273,2]
[346176417,1734765061767,-500.0,0.00020273,2]
[346176418,1734765061777,-500.0,0.00020273,2]
[346176419,1734765061789,-645.7,0.00020273,2]
[346176420,1734765061799,-500.0,0.00020273,2]
[346176421,1734765061808,-500.0,0.00020273,2]
[346176422,1734765061817,-500.0,0.00020273,2]
[346176423,1734765061827,-500.0,0.00020273,2]
[346176424,1734765061837,-500.0,0.00020273,2]
[346176425,1734765061846,-554.92,0.00020273,2]
[346176426,1734765061855,-1268.03,0.00020273,2]
[346176427,1734765061864,-540.99,0.00020273,2]
[346176428,1734765061873,-1370.66,0.00020273,2]
[346176429,1734765061883,-500.0,0.00020273,2]
[346176430,1734765061892,-500.0,0.00020273,2]
[346176431,1734765061902,-500.0,0.00020273,2]
[346176432,1734765061911,-562.67,0.00020273,2]
[346176433,1734765061921,-850.99,0.00020273,2]
[346176434,1734765061931,-602.91,0.00020273,2]
[346176435,1734765061940,-500.0,0.00020273,2]
[346176436,1734765061949,-2360.29,0.00020273,2]
[346176437,1734765061959,-665.96,0.00020273,2]
[346176438,1734765061968,-600.01,0.00020273,2]
[346176439,1734765061977,-500.0,0.00020273,2]
[346176440,1734765061987,-2294.49,0.00020273,2]
[346176441,1734765061997,-500.0,0.00020273,2]
[346176442,1734765062006,-829.63,0.00020273,2]
[346176443,1734765062016,-500.0,0.00020273,2]
[346176444,1734765062025,-613.95,0.00020273,2]
[346176445,1734765062036,-1224.85,0.00020273,2]
[346176446,1734765062046,-956.64,0.00020273,2]
[346176447,1734765062055,-500.0,0.00020273,2]
[346176448,1734765062065,-500.0,0.00020273,2]
[346176449,1734765062074,-1849.46,0.00020273,2]
[346176450,1734765062084,-989.46,0.00020273,2]
[346176451,1734765062093,-500.0,0.00020273,2]
[346176452,1734765062103,-656.77,0.00020273,2]
[346176453,1734765062112,-500.0,0.00020273,2]
[346176454,1734765062122,-500.0,0.00020273,2]
[346176455,1734765062131,-500.0,0.00020273,2]
[346176456,1734765062141,-574.74,0.00020273,2]
[346176457,1734765062150,-500.0,0.00020273,2]
[346176458,1734765062160,-516.88,0.00020273,2]
[346176459,1734765062169,-500.0,0.00020273,2]
[346176460,1734765062179,-696.16,0.00020273,2]
[346176461,1734765062189,-500.0,0.00020273,2]
[346176462,1734765062198,-500.0,0.00020273,2]
[346176463,1734765062207,-500.0,0.00020273,2]
[346176464,1734765062217,-779.16,0.00020273,2]
[346176465,1734765062227,-664.07,0.00020273,2]
[346176466,1734765062237,-500.0,0.00020273,2]
[346176467,1734765062246,-754.41,0.00020273,2]
[346176468,1734765062256,-500.0,0.00020273,2]
[346176469,1734765062266,-598.65,0.00020273,2]
[346176470,1734765062276,-537.46,0.00020273,2]
[346176471,1734765062286,-500.0,0.00020273,2]
[346176472,1734765062296,-500.0,0.00020273,2]
[346176473,1734765062306,-1040.23,0.00020273,2]
[346176474,1734765062316,-550.54,0.00020273,2]
[346176475,1734765062325,-609.74,0.00020273,2]
[346176476,1734765062336,-1545.76,0.00020273,2]
[346176477,1734765062345,-2251.73,0.00020273,2]
[346176478,1734765062355,-500.0,0.00020273,2]
[346176479,1734765062364,-500.0,0.00020273,2]
[346176480,1734765062373,-500.0,0.00020273,2]
[346176481,1734765062383,-667.89,0.00020273,2]
[346176482,1734765062392,-858.31,0.00020273,2]
[346176483,1734765062402,-910.96,0.00020273,2]
[346176484,1734765062411,-525.83,0.00020273,2]
[346176485,1734765062421,-675.58,0.00020273,2]
[346176486,1734765062431,-1257.52,0.00020273,2]
[346176487,1734765062440,-691.15,0.00020273,2]
[346176488,1734765062449,-500.0,0.00020273,2]
[346176489,1734765062459,-588.56,0.00020273,2]
[346176490,1734765062469,-535.87,0.00020273,2]
[346176491,1734765062480,-1844.44,0.00020273,2]
[346176492,1734765062490,-500.0,0.00020273,2]
[346176493,1734765062500,-1112.66,0.00020273,2]
[346176494,1734765062510,-500.0,0.00020273,2]
[346176495,1734765062520,-3778.3,0.00020273,2]
[346176496,1734765062530,-743.81,0.00020273,2]
[346176497,1734765062541,-763.06,0.00020273,2]
[346176498,1734765062551,-500.0,0.00020273,2]
[346176499,1734765062561,-971.73,0.00020273,2]
[346176500,1734765062570,-2008.55,0.00020273,2]
[346176501,1734765062584,-500.0,0.00020273,2]
[346176502,1734765062594,-500.0,0.00020273,2]
[346176503,1734765062604,-695.31,0.00020273,2]
[346176504,1734765062613,-4156.22,0.00020273,2]
[346176505,1734765062626,-500.0,0.00020273,2]
[346176506,1734765062636,-545.8,0.00020273,2]
[346176507,1734765062645,-500.0,0.00020273,2]
[346176508,1734765062654,-1066.88,0.00020273,2]
[346176509,1734765062664,-8814.31,0.00020273,2]
[346176510,1734765062673,-641.57,0.00020273,2]
[346176511,1734765062683,-500.0,0.00020273,2]
[346176512,1734765062694,-1201.21,0.00020273,2]
[346176513,1734765062703,-1027.94,0.00020273,2]
[346176514,1734765062712,-2074.99,0.00020273,2]
[346176515,1734765062721,-986.58,0.00020273,2]
[346176516,1734765062731,-506.9375373,0.00020273,2]
[346176517,1734765062741,-832.32,0.00020273,2]
[346176518,1734765062753,-649.16,0.00020273,2]
[346176519,1734765062762,-892.74,0.00020273,2]
[346176520,1734765062772,-594.18,0.00020273,2]
[346176521,1734765062781,-500.0,0.00020273,2]
[346176522,1734765062791,-1670.61,0.00020273,2]
[346176523,1734765062801,-679.53,0.00020273,2]
[346176524,1734765062811,-922.69,0.00020273,2]
[346176525,1734765062820,-850.92,0.00020273,2]
[346176526,1734765062829,-500.0,0.00020273,2]
[346176527,1734765062839,-2604.91,0.00020273,2]
[346176528,1734765062848,-679.02,0.00020273,2]
[346176529,1734765062858,-500.0,0.00020273,2]
[346176530,1734765062924,-639.51,0.00020273,2]
[346176531,1734765062933,-597.41,0.00020273,2]
[346176532,1734765062943,-539.08,0.00020273,2]
[346176533,1734765062952,-936.04,0.00020273,2]
[346176534,1734765062963,-500.0,0.00020273,2]
[346176535,1734765062972,-500.0,0.00020273,2]
[346176536,1734765062981,-667.52,0.00020273,2]
[346176537,1734765062990,-1171.35,0.00020273,2]
[346176538,1734765063000,-500.0,0.00020273,2]
[346176539,1734765063010,-500.0,0.00020273,2]
[346176540,1734765063019,-500.0,0.00020273,2]
[346176541,1734765063028,-532.42,0.00020273,2]
[346176542,1734765063038,-693.7,0.00020273,2]
[346176543,1734765063048,-828.43,0.00020273,2]
[346176544,1734765063058,-572.81,0.00020273,2]
[346176545,1734765063068,-1349.96,0.00020273,2]
[346176546,1734765063078,-4988.53,0.00020273,2]
[346176547,1734765063087,-500.0,0.00020273,2]
[346176548,1734765063097,-903.09,0.00020273,2]
[346176549,1734765063107,-1611.49,0.00020273,2]
[346176550,1734765063116,-880.44,0.00020273,2]
[346176551,1734765063126,-500.0,0.00020273,2]
[346176552,1734765063135,-200.0,0.00020424,2]
[346176553,1734765063144,-2000.0,0.00020424,2]
[346176554,1734765063154,-200.0,0.00020424,2]
[346176555,1734765063163,-185.70347317,0.00020444,2]
[346176556,1734765063172,-6126.26800292,0.00020445,2]
[346176557,1734765063182,-1000.0,0.00020506,2]
[346176558,1734765063191,-500.0,0.00020544,2]
[346176559,1734765063201,-609.12,0.00020544,2]
[346176560,1734765063210,-731.44,0.00020544,2]
[346176561,1734765063220,-500.0,0.00020544,2]
[346176562,1734765063230,-500.0,0.00020544,2]
[346176563,1734765063240,-909.03,0.00020544,2]
[346176564,1734765063249,-1204.118159,0.00020544,2]
[346176565,1734765063259,-742.5,0.00020544,2]
[346176566,1734765063268,-152.502649,0.00020544,2]
[346176567,1734765063278,-810.145927,0.00020544,2]
[346176568,1734765063289,-534.19,0.00020544,2]
[346176569,1734765063298,-1459.91,0.00020544,2]
[346176570,1734765063308,-156.76574,0.00020544,2]
[346176571,1734765063317,-987.03,0.00020544,2]
[346176572,1734765063326,-1080.78,0.00020544,2]
[346176573,1734765063336,-167.353892,0.00020544,2]
[346176574,1734765063345,-500.0,0.00020544,2]
[346176575,1734765063355,-907.79,0.00020544,2]
[346176576,1734765063364,-5648.75,0.00020544,2]
[346176577,1734765063374,-1707.55,0.00020544,2]
[346176578,1734765063383,-500.0,0.00020544,2]
[346176579,1734765063392,-555.06,0.00020544,2]
[346176580,1734765063401,-4690.0,0.00020544,2]
[346176581,1734765063411,-305.5146605,0.00020545,2]
[346176582,1734765063420,-500.0,0.00020545,2]
[346176583,1734765063429,-500.0,0.00020545,2]
[346176584,1734765063439,-500.0,0.00020545,2]
[346176585,1734765063448,-500.0,0.00020545,2]
[346176586,1734765063457,-500.0,0.00020545,2]
[346176587,1734765063466,-500.0,0.00020545,2]